bitfinex/quotes_BTCUSD_20250703
["timestamp","ask_amount","ask_price","bid_price","bid_amount"]
[1751519648832,1.18285752,109300.0,109290.0,0.0004]
[1751519649039,0.86109509,109300.0,109290.0,0.0004]
[1751519649256,1.18285752,109300.0,109290.0,0.0004]
[1751519649674,1.19855752,109300.0,109290.0,0.0004]
[1751519650527,1.62858003,109300.0,109290.0,0.0004]
[1751519651024,1.65600938,109300.0,109290.0,0.0004]
[1751519654030,1.65620938,109300.0,109290.0,0.0004]
[1751519655167,1.5634493,109300.0,109290.0,0.0004]
[1751519657465,1.7833293,109300.0,109290.0,0.0004]
[1751519657701,1.7678293,109300.0,109290.0,0.0004]
[1751519658448,1.7833293,109300.0,109290.0,0.0004]
[1751519659655,1.73395753,109300.0,109290.0,0.0004]
[1751519659859,1.76147353,109300.0,109290.0,0.0004]
[1751519660167,1.85423361,109300.0,109290.0,0.0004]
[1751519660366,1.85323361,109300.0,109290.0,0.0004]
[1751519660569,1.85623361,109300.0,109290.0,0.0004]
[1751519660773,2.35353361,109300.0,109290.0,0.0004]
[1751519660988,2.35253361,109300.0,109290.0,0.0004]
[1751519661535,2.35453361,109300.0,109290.0,0.0004]
[1751519662486,2.44038108,109300.0,109290.0,0.0004]
[1751519664864,1.79685622,109300.0,109290.0,0.0004]
[1751519665063,2.316421,109300.0,109290.0,0.0004]
[1751519665454,2.28902287,109300.0,109290.0,0.0004]
[1751519666302,1.96726044,109300.0,109290.0,0.0004]
[1751519667662,2.28902287,109300.0,109290.0,0.0004]
[1751519667861,2.30597612,109300.0,109290.0,0.0004]
[1751519668864,2.31240342,109300.0,109290.0,0.0004]
[1751519669892,1.66887856,109300.0,109290.0,0.0004]
[1751519670094,2.31240342,109300.0,109290.0,0.0004]
[1751519671742,2.36719968,109300.0,109290.0,0.0004]
[1751519671901,2.62953691,109300.0,109290.0,0.0004]
[1751519672102,2.71203691,109300.0,109290.0,0.0004]
[1751519672300,2.67550607,109300.0,109290.0,0.0004]
[1751519673912,2.41388074,109300.0,109290.0,0.0004]
[1751519677135,2.39758074,109300.0,109290.0,0.0004]
[1751519677552,2.43924448,109300.0,109290.0,0.0004]
[1751519677761,2.34278448,109300.0,109290.0,0.0004]
[1751519680202,2.32658448,109300.0,109290.0,0.0004]
[1751519684819,7.34218448,109300.0,109290.0,0.0004]
[1751519685233,7.41524616,109300.0,109290.0,0.0004]
[1751519685448,7.39964616,109300.0,109290.0,0.0004]
[1751519685887,7.39965533,109300.0,109290.0,0.0004]
[1751519689119,2.39965533,109300.0,109290.0,0.0004]
[1751519689452,7.39965533,109300.0,109290.0,0.0004]
[1751519691824,7.39321886,109300.0,109290.0,0.0004]
[1751519692050,7.39965609,109300.0,109290.0,0.0004]
[1751519693834,7.66135636,109300.0,109290.0,0.0004]
[1751519694188,7.71175636,109300.0,109290.0,0.0004]
[1751519694579,7.63869468,109300.0,109290.0,0.0004]
[1751519695435,7.63869468,109300.0,109290.0,0.0163]
[1751519696429,7.63869468,109300.0,109290.0,0.0317]
[1751519697027,2.22164242,109300.0,109290.0,0.0317]
[1751519697308,2.47362246,109300.0,109290.0,0.0317]
[1751519697458,2.77560147,109300.0,109290.0,0.0317]
[1751519698223,2.50664297,109300.0,109290.0,0.0317]
[1751519698411,2.47367935,109300.0,109290.0,0.0317]
[1751519698625,2.47363935,109300.0,109290.0,0.0317]
[1751519699029,2.22663935,109300.0,109290.0,0.0317]
[1751519699235,2.47363935,109300.0,109290.0,0.0317]
[1751519699435,2.47363929,109300.0,109290.0,0.0317]
[1751519700514,2.51026704,109300.0,109290.0,0.0317]
[1751519700698,2.51022704,109300.0,109290.0,0.0317]
[1751519701119,2.36022704,109300.0,109290.0,0.0317]
[1751519701324,2.455287,109300.0,109290.0,0.0317]
[1751519702723,1.38448898,109300.0,109290.0,0.0317]
[1751519702899,0.35424482,109300.0,109290.0,0.33367901]
[1751519703101,0.70255869,109300.0,109290.0,0.35080311]
[1751519703434,0.89069986,109300.0,109290.0,0.04882224]
[1751519703972,0.87143465,109300.0,109290.0,0.04882224]
[1751519704173,0.89140723,109300.0,109290.0,0.04882224]
[1751519704367,0.88840723,109300.0,109290.0,0.04882224]
[1751519704533,0.89855627,109300.0,109290.0,0.04882224]
[1751519704740,0.89955627,109300.0,109290.0,0.04882224]
[1751519705148,0.89040723,109300.0,109290.0,0.04882224]
[1751519705333,0.89955619,109300.0,109290.0,0.04882224]
[1751519705530,0.89955695,109300.0,109290.0,0.04882224]
[1751519706423,0.89955695,109300.0,109290.0,0.04881868]
[1751519708756,0.89040782,109300.0,109290.0,0.04881868]
[1751519709520,0.89955686,109300.0,109290.0,0.04881868]
[1751519710284,0.70307686,109300.0,109290.0,0.04881868]
[1751519710495,0.89939686,109300.0,109290.0,0.04881868]
[1751519710695,0.67562999,109300.0,109290.0,0.04881868]
[1751519710940,0.89020782,109300.0,109290.0,0.04881868]
[1751519711105,0.86823524,109300.0,109290.0,0.04881868]
[1751519711303,0.87738437,109300.0,109290.0,0.04881868]
[1751519712321,0.86823575,109300.0,109290.0,0.04881868]
[1751519713136,0.86823575,109300.0,109290.0,0.0487791]
[1751519713354,0.86323575,109300.0,109290.0,0.0487791]
[1751519715429,0.86323575,109300.0,109290.0,0.0317]
[1751519717012,1.04621836,109300.0,109290.0,0.0317]
[1751519720033,0.86323575,109300.0,109290.0,0.0317]
[1751519720286,0.84493758,109300.0,109290.0,0.0317]
[1751519720509,0.67640008,109300.0,109290.0,0.35358052]
[1751519720727,0.68554862,109300.0,109290.0,0.37062983]
[1751519720943,0.68554854,109300.0,109290.0,0.37062983]
[1751519721165,0.42996008,109300.0,109290.0,0.37062983]
[1751519721360,0.48000008,109300.0,109290.0,0.37062983]
[1751519721611,0.67600008,109300.0,109290.0,0.37062983]
[1751519721830,0.68514854,109300.0,109290.0,0.37062983]
[1751519722052,0.68514845,109300.0,109290.0,0.37062983]
[1751519722273,0.68514862,109300.0,109290.0,0.37062983]
[1751519722488,0.48000008,109300.0,109290.0,0.37062983]
[1751519723228,0.48814845,109300.0,109290.0,0.37062983]
[1751519723636,0.48714845,109300.0,109290.0,0.37062983]
[1751519723900,0.49629707,109300.0,109290.0,0.37162983]
[1751519724342,0.49629707,109300.0,109290.0,0.04974931]
[1751519724577,0.50544586,109300.0,109290.0,0.04974931]
[1751519724799,0.49629707,109300.0,109290.0,0.04974931]
[1751519725197,0.48714845,109300.0,109290.0,0.05074931]
[1751519725453,0.49629691,109300.0,109290.0,0.05074931]
[1751519725890,0.50544553,109300.0,109290.0,0.05074931]
[1751519727767,0.49629691,109300.0,109290.0,0.05074931]
[1751519727992,0.49629691,109300.0,109290.0,0.37262983]
[1751519728477,0.48714854,109300.0,109290.0,0.37262983]
[1751519728694,0.48714845,109300.0,109290.0,0.37262983]
[1751519729221,0.49629699,109300.0,109290.0,0.37262983]
[1751519729451,0.48714845,109300.0,109290.0,0.37262983]
[1751519730061,0.49629691,109300.0,109290.0,0.37262983]
[1751519730339,0.48714845,109300.0,109290.0,0.37262983]
[1751519730575,0.49629699,109300.0,109290.0,0.35558052]
[1751519731823,0.48714845,109300.0,109290.0,0.35558052]
[1751519732835,0.49629691,109300.0,109290.0,0.0337]
[1751519732976,0.49629691,109300.0,109290.0,0.35558052]
[1751519734248,0.50544553,109300.0,109290.0,0.35558052]
[1751519734392,0.49629691,109300.0,109290.0,0.35558052]
[1751519735211,0.50544545,109300.0,109290.0,0.35558052]
[1751519736048,0.49629691,109300.0,109290.0,0.35558052]
[1751519736980,0.48714845,109300.0,109290.0,0.35558052]
[1751519737839,0.48714845,109300.0,109290.0,0.33540954]
[1751519739878,0.48714854,109300.0,109290.0,0.33540954]
[1751519741105,0.48714845,109300.0,109290.0,0.33540954]
[1751519743562,0.49629707,109300.0,109290.0,0.33540954]
[1751519743923,0.48714845,109300.0,109290.0,0.33540954]
[1751519744588,0.49629691,109300.0,109290.0,0.33540954]
[1751519745825,0.48714845,109300.0,109290.0,0.33540954]
[1751519747071,0.47800008,109300.0,109290.0,0.33540954]
[1751519747190,0.48714845,109300.0,109290.0,0.33540954]
[1751519747391,0.47800008,109300.0,109290.0,0.33540954]
[1751519748103,0.48714845,109300.0,109290.0,0.33540954]
[1751519748300,0.48714854,109300.0,109290.0,0.33540954]
[1751519748524,0.48714845,109300.0,109290.0,0.33540954]
[1751519749128,0.50544553,109300.0,109290.0,0.33540954]
[1751519749556,0.49629691,109300.0,109290.0,0.33540954]
[1751519749929,0.48714845,109300.0,109290.0,0.33540954]
[1751519751370,0.47800008,109300.0,109290.0,0.33540954]
[1751519752255,0.48714854,109300.0,109290.0,0.33540954]
[1751519752887,0.47800008,109300.0,109290.0,0.33540954]
[1751519753771,0.48714845,109300.0,109290.0,0.33540954]
[1751519754195,0.47800008,109300.0,109290.0,0.33540954]
[1751519754884,0.48714854,109300.0,109290.0,0.33540954]
[1751519755893,0.49629716,109300.0,109290.0,0.33540954]
[1751519756096,0.48714854,109300.0,109290.0,0.33540954]
[1751519756915,0.47800008,109300.0,109290.0,0.33540954]
[1751519757487,0.48714854,109300.0,109290.0,0.33540954]
[1751519757903,0.47800008,109300.0,109290.0,0.33540954]
[1751519758317,0.48714854,109300.0,109290.0,0.33540954]
[1751519758513,0.47800008,109300.0,109290.0,0.33540954]
[1751519759241,0.48714854,109300.0,109290.0,0.33540954]
[1751519759460,0.48714845,109300.0,109290.0,0.33540954]
[1751519759885,0.48714845,109300.0,109290.0,0.0337]
[1751519760098,0.49629691,109300.0,109290.0,0.33540954]
[1751519760573,0.45540553,109300.0,109290.0,0.33540954]
[1751519760985,0.44625691,109300.0,109290.0,0.33540954]
[1751519761659,0.45540545,109300.0,109290.0,0.33540954]
[1751519762497,0.44625691,109300.0,109290.0,0.33540954]
[1751519763632,0.45540562,109300.0,109290.0,0.33540954]
[1751519763836,0.45540553,109300.0,109290.0,0.33540954]
[1751519764676,0.44625691,109300.0,109290.0,0.33540954]
[1751519764853,0.44625691,109300.0,109290.0,0.0337]
[1751519765053,0.43710845,109300.0,109290.0,0.33540954]
[1751519766640,0.43710845,109300.0,109290.0,0.0337]
[1751519766846,0.44625691,109300.0,109290.0,0.33540954]
[1751519767029,0.43710845,109300.0,109290.0,0.33540954]
[1751519767807,0.44625691,109300.0,109290.0,0.33540954]
[1751519768449,0.43710845,109300.0,109290.0,0.33540954]
[1751519768940,0.43710845,109300.0,109290.0,0.0337]
[1751519769116,0.43710845,109300.0,109290.0,0.33540954]
[1751519770279,0.44625699,109300.0,109290.0,0.33540954]
[1751519770700,0.4554057,109300.0,109290.0,0.33540954]
[1751519771349,0.44625699,109300.0,109290.0,0.33540954]
[1751519771925,0.4554057,109300.0,109290.0,0.33540954]
[1751519772927,0.44625699,109300.0,109290.0,0.33540954]
[1751519773127,0.45540561,109300.0,109290.0,0.33540954]
[1751519773490,0.44625699,109300.0,109290.0,0.33540954]
[1751519773703,0.44625699,109300.0,109290.0,0.0337]
[1751519773918,0.44625699,109300.0,109290.0,0.33540954]
[1751519774544,0.43710845,109300.0,109290.0,0.33540954]
[1751519775623,0.42796008,109300.0,109290.0,0.33540954]
[1751519777587,0.42796008,109300.0,109290.0,0.0337]
[1751519777793,0.42796008,109300.0,109290.0,0.33540954]
[1751519778032,0.42796008,109300.0,109290.0,0.34183027]
[1751519778145,0.42796008,109300.0,109290.0,0.35094045]
[1751519781120,0.42796008,109300.0,109290.0,0.34451972]
[1751519781324,0.42796008,109300.0,109290.0,0.35094073]
[1751519783754,0.42796008,109300.0,109290.0,0.35094131]
[1751519789630,0.42796008,109300.0,109290.0,0.04923177]
[1751519789828,0.42796008,109300.0,109290.0,0.35094131]
[1751519795262,0.43710845,109300.0,109290.0,0.54510131]
[1751519795463,0.42796008,109300.0,109290.0,0.54510131]
[1751519796263,0.42796008,109300.0,109290.0,0.54510027]
[1751519797353,0.42796008,109300.0,109290.0,0.54510011]
[1751519798335,0.3402,109300.0,109290.0,0.54510011]
[1751519799477,0.3402,109300.0,109290.0,0.54510004]
[1751519800916,0.3402,109300.0,109290.0,0.2433905]
[1751519801157,0.3402,109300.0,109290.0,0.54510004]
[1751519802647,0.0002,109300.0,109290.0,0.84680958]
[1751519803083,0.0002,109300.0,109290.0,0.54510004]
[1751519803978,0.0002,109300.0,109290.0,0.84680958]
[1751519804411,0.0002,109300.0,109290.0,0.87474171]
[1751519805281,0.0002,109300.0,109290.0,0.87374171]
[1751519805690,0.0002,109300.0,109290.0,0.87574171]
[1751519806125,0.0002,109300.0,109290.0,0.91222712]
[1751519806727,0.0002,109300.0,109290.0,0.60951758]
[1751519807238,0.0002,109300.0,109290.0,0.61151758]
[1751519808293,0.0002,109300.0,109290.0,0.91322712]
[1751519808906,0.0002,109300.0,109290.0,1.09622647]
[1751519809141,0.0002,109300.0,109290.0,0.91322712]
[1751519809549,0.0002,109300.0,109290.0,0.91321772]
[1751519810151,0.0002,109300.0,109290.0,0.30979864]
[1751519810358,0.0002,109300.0,109290.0,0.91321772]
[1751519810559,0.0002,109300.0,109290.0,1.18897715]
[1751519810765,0.0002,109300.0,109290.0,0.99481715]
[1751519810963,0.0002,109300.0,109290.0,1.18857715]
[1751519811521,0.0002,109300.0,109290.0,0.99481715]
[1751519811730,0.0002,109300.0,109290.0,1.18853715]
[1751519811932,0.0002,109300.0,109290.0,1.18853598]
[1751519812651,0.0002,109300.0,109290.0,1.00553663]
[1751519816860,0.0002,109300.0,109290.0,1.00041663]
[1751519817066,0.0002,109300.0,109290.0,0.80681663]
[1751519817269,0.0002,109300.0,109290.0,1.00041663]
[1751519817495,0.0002,109300.0,109290.0,1.30041663]
[1751519817704,0.0002,109300.0,109290.0,1.49256578]
[1751519817907,0.0002,109300.0,109290.0,1.50171549]
[1751519818110,0.0002,109300.0,109290.0,1.51086512]
[1751519818312,0.0002,109300.0,109290.0,1.50445537]
[1751519818465,0.0002,109300.0,109290.0,1.50171355]
[1751519818684,0.0002,109300.0,109290.0,1.49256384]
[1751519818842,0.0002,109300.0,109290.0,1.49056384]
[1751519819046,0.0002,109300.0,109290.0,1.48856384]
[1751519819258,0.0002,109300.0,109290.0,1.49256392]
[1751519819458,0.0002,109300.0,109290.0,1.49556392]
[1751519819885,0.0002,109300.0,109290.0,1.48641404]
[1751519820084,0.0002,109300.0,109290.0,1.30341469]
[1751519821539,0.0002,109300.0,109290.0,1.29692688]
[1751519822008,0.0002,109300.0,109290.0,1.10340688]
[1751519822419,0.0002,109300.0,109290.0,1.29688688]
[1751519825099,0.0002,109300.0,109290.0,1.29680688]
[1751519825297,0.0002,109300.0,109290.0,1.10340688]
[1751519825429,0.0002,109300.0,109290.0,1.29680688]
[1751519826683,0.0002,109300.0,109290.0,1.47980623]
[1751519827195,0.0002,109300.0,109290.0,1.48895619]
[1751519827416,0.0002,109300.0,109290.0,1.49810607]
[1751519827818,0.0002,109300.0,109290.0,1.47980623]
[1751519828231,0.0002,109300.0,109290.0,1.48895619]
[1751519828888,0.0002,109300.0,109290.0,1.47980623]
[1751519829094,0.0002,109300.0,109290.0,1.29680688]
[1751519829310,0.0002,109300.0,109290.0,1.30313693]
[1751519829942,0.0002,109300.0,109290.0,1.48613628]
[1751519830180,0.0002,109300.0,109290.0,1.49528624]
[1751519830587,0.0002,109300.0,109290.0,1.48613628]
[1751519831191,0.0002,109300.0,109290.0,1.29281628]
[1751519831395,0.0002,109300.0,109290.0,1.54079816]
[1751519832587,0.0002,109300.0,109290.0,1.54994812]
[1751519832788,0.0002,109300.0,109290.0,1.54079816]
[1751519833200,0.0002,109300.0,109290.0,1.54994812]
[1751519833414,0.0002,109300.0,109290.0,1.84262106]
[1751519834666,0.0002,109300.0,109290.0,1.78795918]
[1751519835096,0.0002,109300.0,109290.0,1.78395918]
[1751519835519,0.0002,109300.0,109290.0,1.78695918]
[1751519835724,0.0002,109300.0,109290.0,1.78395918]
[1751519835907,0.0002,109300.0,109290.0,1.78595918]
[1751519836271,0.0002,109300.0,109290.0,1.84067791]
[1751519837174,0.0002,109300.0,109290.0,1.78595918]
[1751519837385,0.0002,109300.0,109290.0,1.85884169]
[1751519838789,0.0002,109300.0,109290.0,1.87338254]
[1751519839193,0.0002,109300.0,109290.0,2.21338254]
[1751519839843,0.0002,109300.0,109290.0,2.21138254]
[1751519840274,0.0002,109300.0,109290.0,2.21638254]
[1751519840688,0.0002,109300.0,109290.0,1.31125392]
[1751519840898,0.0002,109300.0,109290.0,2.21638254]
[1751519841380,0.0002,109300.0,109290.0,2.21338254]
[1751519841588,0.0002,109300.0,109290.0,2.21838254]
[1751519841800,0.0002,109300.0,109290.0,1.31325392]
[1751519841997,0.0002,109300.0,109290.0,1.9564797]
[1751519844214,0.0002,109300.0,109290.0,2.25147019]
[1751519845349,0.0002,109300.0,109290.0,2.05815019]
[1751519845514,0.0002,109300.0,109290.0,2.25111019]
[1751519845709,0.0002,109300.0,109290.0,2.57272308]
[1751519845921,0.05196452,109330.0,109320.0,0.67462578]
[1751519846156,0.05196452,109330.0,109320.0,0.55233343]
[1751519846719,0.05196452,109330.0,109320.0,0.87394632]
[1751519847142,0.34,109340.0,109320.0,1.05689336]
[1751519847372,0.08094,109350.0,109330.0,0.51677954]
[1751519847571,0.08094,109350.0,109340.0,0.32161289]
[1751519847811,0.04884,109350.0,109340.0,0.32801343]
[1751519848025,0.06444,109350.0,109340.0,0.32801343]
[1751519848236,0.0002,109350.0,109340.0,0.52089343]
[1751519848656,0.00024695,109350.0,109340.0,0.53609343]
[1751519848834,0.00024695,109350.0,109340.0,0.55199343]
[1751519849087,0.00224695,109350.0,109340.0,0.55199343]
[1751519850527,0.00324695,109350.0,109340.0,0.55199343]
[1751519851010,0.00324695,109350.0,109340.0,0.56136147]
[1751519851231,0.00324695,109350.0,109340.0,0.74427714]
[1751519851478,0.00324695,109350.0,109340.0,0.75342292]
[1751519851699,0.00324695,109350.0,109340.0,0.74427714]
[1751519851952,0.00324695,109350.0,109340.0,1.08418134]
[1751519852164,0.00324695,109350.0,109340.0,0.76256862]
[1751519852372,0.00324695,109350.0,109340.0,0.79898331]
[1751519852644,0.00324695,109350.0,109340.0,0.80812892]
[1751519852846,0.00324695,109350.0,109340.0,0.78983761]
[1751519853058,0.00324695,109350.0,109340.0,0.78069183]
[1751519853280,0.00324695,109350.0,109340.0,0.74427714]
[1751519853487,0.00224695,109350.0,109340.0,1.18608644]
[1751519854124,0.00024695,109350.0,109340.0,1.18608644]
[1751519854353,0.00024695,109350.0,109340.0,1.22438113]
[1751519854538,0.00024695,109350.0,109340.0,1.18996644]
[1751519854899,0.00024695,109350.0,109340.0,1.22638113]
[1751519855103,0.00024695,109350.0,109340.0,1.22238113]
[1751519855630,0.00024695,109350.0,109340.0,1.22538113]
[1751519855972,0.00024695,109350.0,109340.0,1.22534113]
[1751519856384,0.00024695,109350.0,109340.0,1.03262113]
[1751519856605,0.00024695,109350.0,109340.0,1.22834113]
[1751519857153,0.00024695,109350.0,109340.0,1.22834122]
[1751519857355,0.00024695,109350.0,109340.0,1.20107172]
[1751519857658,0.00024695,109350.0,109340.0,1.19188653]
[1751519857859,0.00024695,109350.0,109340.0,1.20103172]
[1751519858522,0.00024695,109350.0,109340.0,1.23744641]
[1751519858722,0.00024695,109350.0,109340.0,1.20103172]
[1751519859316,0.00024695,109350.0,109340.0,1.23744641]
[1751519859718,0.00024695,109350.0,109340.0,1.23741589]
[1751519862853,0.00024695,109350.0,109340.0,1.26489889]
[1751519863209,0.00024695,109350.0,109340.0,1.56489889]
[1751519864822,0.00024695,109350.0,109340.0,1.85989889]
[1751519866965,0.00024695,109350.0,109340.0,0.9874115]
[1751519867169,0.00024695,109350.0,109340.0,1.06221103]
[1751519867338,0.00024695,109350.0,109340.0,1.4467924]
[1751519867763,0.00024695,109350.0,109340.0,1.25427248]
[1751519867949,0.00024695,109350.0,109340.0,1.4467924]
[1751519868381,0.00024695,109350.0,109340.0,1.45293801]
[1751519868592,0.00024695,109350.0,109340.0,1.4457924]
[1751519868762,0.00024695,109350.0,109340.0,1.44579248]
[1751519868921,0.00024695,109350.0,109340.0,1.45493818]
[1751519869122,0.00024695,109350.0,109340.0,1.45193818]
[1751519869322,0.00024695,109350.0,109340.0,1.49035287]
[1751519870376,0.00024695,109350.0,109340.0,1.50864392]
[1751519870534,0.00024695,109350.0,109340.0,1.51778945]
[1751519870733,0.00024695,109350.0,109340.0,1.48116717]
[1751519870956,0.00024695,109350.0,109340.0,1.00325142]
[1751519871160,0.00024695,109350.0,109340.0,1.1953127]
[1751519871365,0.00024695,109350.0,109340.0,1.20445823]
[1751519871588,0.00024695,109350.0,109340.0,1.18616709]
[1751519871734,0.00024695,109350.0,109340.0,0.80162572]
[1751519871954,0.00024695,109350.0,109340.0,0.42839814]
[1751519872159,0.00024695,109350.0,109340.0,0.83379095]
[1751519872160,0.01674695,109350.0,109340.0,0.83379095]
[1751519872370,0.01674695,109350.0,109340.0,0.64135095]
[1751519872575,0.03194695,109350.0,109340.0,0.31037002]
[1751519872797,0.03194695,109350.0,109340.0,0.50281002]
[1751519873596,0.05023583,109350.0,109340.0,0.30637002]
[1751519873800,0.04109122,109350.0,109340.0,0.49881002]
[1751519873954,0.05023566,109350.0,109340.0,0.49881002]
[1751519874165,0.04109122,109350.0,109340.0,0.49881002]
[1751519874367,0.03194695,109350.0,109340.0,0.49881002]
[1751519874570,0.03194695,109350.0,109340.0,0.30637002]
[1751519874981,0.03394695,109350.0,109340.0,0.49877002]
[1751519875135,0.04309122,109350.0,109340.0,0.49877002]
[1751519875337,0.04309122,109350.0,109340.0,0.49878761]
[1751519875771,0.05223558,109350.0,109340.0,0.49878761]
[1751519875971,0.05323558,109350.0,109340.0,0.49878761]
[1751519876435,0.04409122,109350.0,109340.0,0.49878761]
[1751519876921,0.05323574,109350.0,109340.0,0.30638761]
[1751519877147,0.05323566,109350.0,109340.0,0.49878761]
[1751519877376,0.04409122,109350.0,109340.0,0.49878761]
[1751519877841,0.05323574,109350.0,109340.0,0.49878761]
[1751519878087,0.04409122,109350.0,109340.0,0.49878761]
[1751519878291,0.05323566,109350.0,109340.0,0.49878761]
[1751519878487,0.04409122,109350.0,109340.0,0.49878761]
[1751519878874,0.05323558,109350.0,109340.0,0.49878761]
[1751519879074,0.0623801,109350.0,109340.0,0.30638761]
[1751519879286,0.07152479,109350.0,109340.0,0.49874761]
[1751519879697,0.91603771,109350.0,109340.0,0.30638761]
[1751519879867,0.72399383,109350.0,109340.0,0.49874761]
[1751519880063,0.40238094,109350.0,109340.0,0.49874761]
[1751519880501,0.41152588,109350.0,109340.0,0.49874761]
[1751519880670,0.41152588,109350.0,109340.0,0.51579592]
[1751519882379,0.41152588,109350.0,109340.0,0.32343592]
[1751519883608,1.00879779,109350.0,109340.0,0.32343592]
[1751519883821,1.47666232,109350.0,109340.0,0.02343592]
[1751519884034,1.47666232,109350.0,109340.0,0.00638761]
[1751519884449,0.01454085,109340.0,109330.0,0.0004]
[1751519884680,1.1840951,109340.0,109330.0,0.00678974]
[1751519885084,1.1840951,109340.0,109330.0,0.0004]
[1751519885490,1.1931562,109340.0,109330.0,0.0004]
[1751519886508,1.1911562,109340.0,109330.0,0.0004]
[1751519886726,1.23752859,109340.0,109330.0,0.0004]
[1751519886931,1.1911562,109340.0,109330.0,0.0004]
[1751519887332,1.1941562,109340.0,109330.0,0.0004]
[1751519898627,1.1911562,109340.0,109330.0,0.0004]
[1751519898829,1.1951562,109340.0,109330.0,0.0004]
[1751519899040,1.1921562,109340.0,109330.0,0.0004]
[1751519899252,1.28491628,109340.0,109330.0,0.0004]
[1751519899375,1.28791628,109340.0,109330.0,0.0004]
[1751519905687,1.31542228,109340.0,109330.0,0.0004]
[1751519906298,1.34272302,109340.0,109330.0,0.0004]
[1751519907519,1.15040302,109340.0,109330.0,0.0004]
[1751519907716,1.37221694,109340.0,109330.0,0.0004]
[1751519908532,1.05060405,109340.0,109330.0,0.0004]
[1751519908772,1.37221694,109340.0,109330.0,0.0004]
[1751519908923,1.18013694,109340.0,109330.0,0.0004]
[1751519909125,1.46761103,109340.0,109330.0,0.0004]
[1751519909767,1.22729103,109340.0,109330.0,0.0004]
[1751519909981,1.46761103,109340.0,109330.0,0.0004]
[1751519910813,1.22729103,109340.0,109330.0,0.0004]
[1751519911016,1.46757103,109340.0,109330.0,0.0004]
[1751519912609,1.50419742,109340.0,109330.0,0.0004]
[1751519914455,1.47689668,109340.0,109330.0,0.0004]
[1751519916770,1.50439968,109340.0,109330.0,0.0004]
[1751519917592,1.50459968,109340.0,109330.0,0.0004]
[1751519918192,1.48899968,109340.0,109330.0,0.0004]
[1751519919223,1.70883968,109340.0,109330.0,0.0004]
[1751519919423,1.76377972,109340.0,109330.0,0.0004]
[1751519920202,1.70883968,109340.0,109330.0,0.0004]
[1751519920425,1.76377972,109340.0,109330.0,0.0004]
[1751519921351,1.77927972,109340.0,109330.0,0.0004]
[1751519921581,1.77927972,109340.0,109330.0,0.0004]
[1751519921800,1.79265333,109340.0,109330.0,0.0004]
[1751519922044,2.16426622,109340.0,109330.0,0.0004]
[1751519922260,1.84265333,109340.0,109330.0,0.0004]
[1751519931573,1.52104044,109340.0,109330.0,0.0004]
[1751519931777,1.84265333,109340.0,109330.0,0.0004]
[1751519934706,2.16426622,109340.0,109330.0,0.0004]
[1751519934915,7.16426622,109340.0,109330.0,0.0004]
[1751519935699,7.15726622,109340.0,109330.0,0.0004]
[1751519935901,7.16826622,109340.0,109330.0,0.0014]
[1751519938295,6.84665333,109340.0,109330.0,0.0014]
[1751519940489,7.16826622,109340.0,109330.0,0.0014]
[1751519941859,6.89728622,109340.0,109330.0,0.0014]
[1751519942078,6.81539333,109340.0,109330.0,0.0014]
[1751519942508,6.83139333,109340.0,109330.0,0.0014]
[1751519945808,7.15300622,109340.0,109330.0,0.0014]
[1751519946860,7.16840622,109340.0,109330.0,0.0014]
[1751519947066,6.81539333,109340.0,109330.0,0.0014]
[1751519947694,6.62371333,109340.0,109330.0,0.0014]
[1751519947942,6.81531333,109340.0,109330.0,0.0014]
[1751519948233,6.76527333,109340.0,109330.0,0.0335]
[1751519948585,6.52567333,109340.0,109330.0,0.0335]
[1751519948787,6.76527333,109340.0,109330.0,0.0335]
[1751519949745,6.71527333,109340.0,109330.0,0.0335]
[1751519949919,6.76527333,109340.0,109330.0,0.0335]
[1751519950245,6.71527333,109340.0,109330.0,0.0335]
[1751519950473,6.76527333,109340.0,109330.0,0.0335]
[1751519951281,1.76527333,109340.0,109330.0,0.0335]
[1751519955397,1.71527333,109340.0,109330.0,0.0335]
[1751519955594,1.76527333,109340.0,109330.0,0.0335]
[1751519956941,1.71527333,109340.0,109330.0,0.0335]
[1751519957079,1.76527333,109340.0,109330.0,0.0335]
[1751519957486,1.71527333,109340.0,109330.0,0.0335]
[1751519957704,1.76527333,109340.0,109330.0,0.0335]
[1751519958976,1.71527333,109340.0,109330.0,0.0335]
[1751519959178,1.76527333,109340.0,109330.0,0.0335]
[1751519960698,1.47567333,109340.0,109330.0,0.0335]
[1751519960898,1.76511333,109340.0,109330.0,0.0335]
[1751519961251,1.71511333,109340.0,109330.0,0.0335]
[1751519961378,1.76511333,109340.0,109330.0,0.0335]
[1751519962230,1.71511333,109340.0,109330.0,0.0335]
[1751519962436,1.76511333,109340.0,109330.0,0.0335]
[1751519964525,1.44350044,109340.0,109330.0,0.0335]
[1751519964769,1.76511333,109340.0,109330.0,0.0335]
[1751519965889,1.71511333,109340.0,109330.0,0.0335]
[1751519966131,1.76511333,109340.0,109330.0,0.0335]
[1751519967185,1.71511333,109340.0,109330.0,0.0335]
[1751519967398,1.76511333,109340.0,109330.0,0.0335]
[1751519968218,1.71511333,109340.0,109330.0,0.0335]
[1751519968428,1.76511333,109340.0,109330.0,0.0335]
[1751519968781,1.71511333,109340.0,109330.0,0.0335]
[1751519968991,1.76511333,109340.0,109330.0,0.0335]
[1751519971562,1.71511333,109340.0,109330.0,0.0335]
[1751519971766,1.76511333,109340.0,109330.0,0.0335]
[1751519973850,2.34875221,109340.0,109330.0,0.0335]
[1751519974481,2.29875221,109340.0,109330.0,0.0335]
[1751519974686,2.34875221,109340.0,109330.0,0.0335]
[1751519977731,2.24381217,109340.0,109330.0,0.0335]
[1751519977905,2.29381217,109340.0,109330.0,0.0335]
[1751519980728,2.24381217,109340.0,109330.0,0.0335]
[1751519980933,2.29381217,109340.0,109330.0,0.0335]
[1751519981134,1.99178158,109340.0,109330.0,0.0335]
[1751519981336,2.04672651,109340.0,109330.0,0.0335]
[1751519981564,2.2984771,109340.0,109330.0,0.0335]
[1751519981768,2.3484771,109340.0,109330.0,0.0335]
[1751519982730,2.3482771,109340.0,109330.0,0.0335]
[1751519989692,1.80756651,109340.0,109330.0,0.0335]
[1751519989906,2.04644651,109340.0,109330.0,0.0335]
[1751519990836,2.3481971,109340.0,109330.0,0.0335]
[1751519991267,2.3481971,109340.0,109330.0,0.0178]
[1751519991503,2.3481971,109340.0,109330.0,0.0335]
[1751519991915,2.339136,109340.0,109330.0,0.0335]
[1751519994898,1.43388423,109340.0,109330.0,0.0335]
[1751519995111,2.03738541,109340.0,109330.0,0.0335]
[1751519997483,2.03738541,109340.0,109330.0,0.0535]
[1751519999223,2.389136,109340.0,109330.0,0.0378]